bitfinex/quotes_SOLUSD_20250704
["timestamp","ask_amount","ask_price","bid_price","bid_amount"]
[1751668805536,3.80736235,148.49,148.48,6.93489613]
[1751668805730,3.80736235,148.49,148.48,0.2]
[1751668807152,3.80736235,148.49,148.48,6.93491379]
[1751668807845,3.80736235,148.49,148.48,0.2]
[1751668813749,6.73391542,148.51,148.48,0.2]
[1751668813957,3.80736235,148.49,148.48,0.2]
[1751668815155,6.73391542,148.51,148.48,0.2]
[1751668815361,3.80736235,148.49,148.48,0.2]
[1751668817164,11.7584886,148.51,148.48,0.2]
[1751668817464,3.80736235,148.49,148.48,0.2]
[1751668820860,6.73400733,148.5,148.48,0.2]
[1751668821168,3.80736235,148.49,148.48,0.2]
[1751668823175,11.75831354,148.51,148.48,0.2]
[1751668823375,3.80736235,148.49,148.48,0.2]
[1751668827583,11.75831354,148.51,148.48,0.2]
[1751668827879,3.80736235,148.49,148.48,0.2]
[1751668832779,5.02457318,148.51,148.48,0.2]
[1751668832970,3.80736235,148.51,148.48,6.93485081]
[1751668833169,3.80736235,148.52,148.48,6.93485081]
[1751668833676,3.80736235,148.53,148.48,10.74221316]
[1751668834866,3.80736235,148.52,148.48,10.74221316]
[1751668836558,3.80736235,148.52,148.48,27.57949764]
[1751668836964,3.80736235,148.53,148.48,27.57949764]
[1751668837162,8.82955834,148.53,148.48,27.57949764]
[1751668837372,3.80736235,148.53,148.48,27.57949764]
[1751668837569,8.82955834,148.53,148.48,27.57949764]
[1751668837778,3.80736235,148.52,148.48,27.57949764]
[1751668838354,5.02219599,148.53,148.48,29.09509764]
[1751668838560,8.82955834,148.54,148.49,26.0]
[1751668838869,8.82955834,148.54,148.49,29.80736235]
[1751668838870,5.02219599,148.53,148.49,29.80736235]
[1751668839458,5.02219599,148.52,148.49,29.80736235]
[1751668839673,5.02219599,148.53,148.49,29.80736235]
[1751668839865,5.02219599,148.52,148.49,29.80736235]
[1751668840078,5.02219599,148.53,148.49,29.80736235]
[1751668840381,5.02219599,148.52,148.49,29.80736235]
[1751668840882,5.02219599,148.52,148.5,6.73400673]
[1751668841369,3.80736235,148.53,148.5,6.73400673]
[1751668841562,5.02219599,148.52,148.5,6.73400673]
[1751668842384,3.80736235,148.53,148.5,6.73400673]
[1751668842587,5.03820424,148.52,148.5,6.73400673]
[1751668842885,3.80736235,148.53,148.5,6.73400673]
[1751668843086,5.03820424,148.52,148.5,6.73400673]
[1751668843288,3.80736235,148.53,148.5,6.73400673]
[1751668843580,5.04110178,148.52,148.5,6.73400673]
[1751668843886,5.04110178,148.51,148.5,6.73400673]
[1751668847686,3.80736235,148.53,148.5,6.73400673]
[1751668848968,3.80736235,148.52,148.5,6.73400673]
[1751668849883,9.24264138,148.55,148.5,6.73400673]
[1751668850073,3.80736235,148.52,148.5,6.73400673]
[1751668851995,8.84822938,148.52,148.5,6.73400673]
[1751668852174,3.80736235,148.52,148.5,6.73400673]
[1751668852675,8.84822938,148.52,148.5,6.73400673]
[1751668852974,3.80736235,148.52,148.5,6.73400673]
[1751668854170,88.9,148.54,148.49,6.73443212]
[1751668854486,3.80736235,148.51,148.49,6.73443212]
[1751668857190,3.80736235,148.52,148.49,6.73443212]
[1751668857391,8.84681677,148.52,148.49,6.73443212]
[1751668857604,3.80736235,148.52,148.49,6.73443212]
[1751668857791,5.03945442,148.52,148.49,6.73443212]
[1751668857974,3.80736235,148.52,148.49,6.73443212]
[1751668858176,8.84681677,148.52,148.49,6.73443212]
[1751668858383,88.9,148.54,148.49,6.73443212]
[1751668858584,3.80736235,148.52,148.49,6.73443212]
[1751668864519,88.9,148.54,148.49,6.73443212]
[1751668864717,3.80736235,148.52,148.49,6.73443212]
[1751668866416,88.9,148.54,148.49,6.73443212]
[1751668866588,3.80736235,148.52,148.49,6.73443212]
[1751668867789,3.80736235,148.5,148.48,0.2]
[1751668867993,8.84909172,148.49,148.48,0.2]
[1751668872605,15.58355195,148.49,148.48,0.2]
[1751668872991,49.46265021,148.49,148.48,0.2]
[1751668873188,57.29512243,148.49,148.48,0.2]
[1751668873393,18.64964886,148.48,148.47,0.2]
[1751668873613,42.72818998,148.48,148.47,0.2]
[1751668873794,55.79178998,148.48,148.43,0.2]
[1751668873999,22.45701121,148.44,148.43,0.2]
[1751668874304,33.7984128,148.44,148.43,0.2]
[1751668874611,40.53514144,148.44,148.43,0.2]
[1751668875498,46.57874144,148.44,148.43,0.2]
[1751668875702,40.27906922,148.44,148.43,0.2]
[1751668876000,42.42559202,148.44,148.43,0.2]
[1751668877414,18.64964886,148.43,148.42,0.2]
[1751668877605,29.64526338,148.43,148.42,0.2]
[1751668878816,36.38244589,148.43,148.42,0.2]
[1751668881524,5.95388515,148.43,148.42,0.2]
[1751668882025,12.69106766,148.43,148.42,0.2]
[1751668884624,101.59106766,148.43,148.42,0.2]
[1751668891636,95.63718251,148.43,148.42,0.2]
[1751668891838,101.59106766,148.43,148.42,0.2]
[1751668894927,95.63629449,148.45,148.42,0.2]
[1751668895239,5.95388515,148.43,148.42,0.2]
[1751668899854,12.69106766,148.43,148.42,0.2]
[1751668900556,5.95388515,148.43,148.42,0.2]
[1751668909062,10.97069422,148.43,148.42,0.2]
[1751668910655,17.70787673,148.43,148.42,0.2]
[1751668911850,15.56376791,148.43,148.42,0.2]
[1751668912357,8.8265854,148.43,148.42,0.2]
[1751668914371,15.56376791,148.43,148.42,0.2]
[1751668916978,21.81118518,148.43,148.42,0.2]
[1751668917188,110.71118518,148.43,148.42,0.2]
[1751668921885,100.16422634,148.43,148.42,0.2]
[1751668922065,97.7265854,148.43,148.42,0.2]
[1751668924888,93.91680907,148.43,148.42,0.2]
[1751668925684,93.91680907,148.43,148.42,6.93763643]
[1751668925986,93.91680907,148.43,148.42,10.74741276]
[1751668926368,5.01680907,148.43,148.42,10.74741276]
[1751668926567,10.0571936,148.47,148.42,10.74741276]
[1751668926770,5.04885181,148.46,148.42,10.74741276]
[1751668926963,5.04885181,148.45,148.42,10.74741276]
[1751668927169,5.04885181,148.44,148.42,10.74741276]
[1751668927467,5.04885181,148.43,148.42,10.74741276]
[1751668927673,5.04885181,148.43,148.42,6.93763643]
[1751668927981,5.04885181,148.43,148.42,12.88592297]
[1751668928688,5.04885181,148.43,148.42,14.52342297]
[1751668928867,5.04885181,148.46,148.42,31.36751406]
[1751668929192,5.04885181,148.45,148.43,5.94828654]
[1751668929369,5.04462166,148.46,148.43,5.94828654]
[1751668929569,5.04462166,148.45,148.43,5.94828654]
[1751668929790,5.04462166,148.46,148.43,5.94828654]
[1751668929976,5.04462166,148.45,148.43,5.94828654]
[1751668930176,5.04462166,148.46,148.43,5.94828654]
[1751668930378,5.94828654,148.47,148.43,5.94828654]
[1751668930696,5.04317839,148.46,148.43,5.94828654]
[1751668930870,5.94828654,148.47,148.44,6.73672864]
[1751668931070,5.04317697,148.46,148.44,6.73672864]
[1751668931285,5.94828654,148.47,148.44,6.73672864]
[1751668931493,5.04198529,148.46,148.44,6.73672864]
[1751668931679,5.94828654,148.47,148.44,6.73672864]
[1751668931867,5.04198529,148.46,148.44,6.73672864]
[1751668932067,5.94828654,148.47,148.44,6.73672864]
[1751668932264,5.04205806,148.46,148.44,6.73672864]
[1751668932481,5.94828654,148.47,148.44,6.73672864]
[1751668932694,5.04098932,148.46,148.44,6.73672864]
[1751668932878,5.94828654,148.47,148.44,6.73672864]
[1751668933073,5.04098932,148.46,148.44,6.73672864]
[1751668933275,5.94828654,148.47,148.44,6.73672864]
[1751668933474,5.04016339,148.46,148.44,6.73672864]
[1751668933678,5.94828654,148.47,148.44,6.73672864]
[1751668933879,10.9884485,148.46,148.43,6.73718251]
[1751668934080,5.94828654,148.46,148.43,6.73718251]
[1751668934599,10.98777305,148.46,148.43,6.73718251]
[1751668934801,5.94828654,148.46,148.43,6.73718251]
[1751668935102,10.98777305,148.46,148.43,6.73718251]
[1751668935310,5.94828654,148.46,148.43,6.73718251]
[1751668935470,10.98777305,148.46,148.43,6.73718251]
[1751668935677,10.98777305,148.47,148.43,12.68546905]
[1751668935878,5.03948651,148.46,148.43,12.68546905]
[1751668936502,5.03948651,148.46,148.43,6.73718251]
[1751668939706,10.98777305,148.46,148.43,6.73718251]
[1751668939901,5.94828654,148.46,148.43,6.73718251]
[1751668940117,5.94828654,148.44,148.42,0.2]
[1751668940293,10.98777305,148.43,148.42,0.2]
[1751668941302,29.63742191,148.43,148.42,0.2]
[1751668941506,36.37460442,148.43,148.42,0.2]
[1751668945207,31.33557183,148.42,148.41,0.2]
[1751668945395,42.67247897,148.42,148.41,0.2]
[1751668946006,36.37505834,148.42,148.41,0.2]
[1751668951205,36.36997859,148.42,148.41,0.2]
[1751668957014,42.31826513,148.42,148.4,0.2]
[1751668957220,35.5806287,148.41,148.4,0.2]
[1751668958703,36.37043258,148.41,148.4,0.2]
[1751668960621,42.31871912,148.41,148.4,0.2]
[1751668961499,93.32394518,148.41,148.37,0.2]
[1751668961711,24.5979354,148.38,148.37,0.2]
[1751668961900,10.9826933,148.38,148.37,0.2]
[1751668962214,5.94828654,148.38,148.37,0.2]
[1751668964205,10.97619768,148.38,148.37,0.2]
[1751668964407,5.94828654,148.38,148.37,0.2]
[1751668967835,88.9,148.39,148.37,6.93980111]
[1751668968205,5.94828654,148.4,148.37,6.93980111]
[1751668968517,5.02484317,148.41,148.37,12.88808765]
[1751668968718,5.94828654,148.41,148.37,12.88808765]
[1751668968907,10.97312971,148.42,148.38,5.94828654]
[1751668969308,10.97312971,148.42,148.39,6.73899858]
[1751668970027,8.83416247,148.42,148.39,6.73899858]
[1751668970209,3.8093193,148.42,148.39,6.73899858]
[1751668971127,12.04484317,148.43,148.38,6.73945275]
[1751668971308,3.8093193,148.42,148.38,6.73945275]
[1751668971832,5.95211401,148.41,148.38,6.73945275]
[1751668974637,5.02484317,148.42,148.38,6.73945275]
[1751668974834,5.95211401,148.41,148.38,6.73945275]
[1751668975440,10.97695718,148.42,148.38,12.69156676]
[1751668975733,5.02484317,148.42,148.38,12.69156676]
[1751668975913,7.02,148.43,148.39,5.95211401]
[1751668976120,12.04484317,148.43,148.4,5.95211401]
[1751668977118,12.04484317,148.43,148.41,6.73809042]
[1751668981531,5.02484317,148.42,148.41,6.73809042]
[1751668982220,12.04484317,148.43,148.41,6.73809042]
[1751668982421,5.02484317,148.42,148.41,6.73809042]
[1751668984142,5.02484317,148.42,148.4,6.73854447]
[1751668984751,7.02,148.43,148.4,6.73854447]
[1751668984934,5.04258727,148.42,148.4,6.73854447]
[1751668985838,5.04258727,148.43,148.4,6.73854447]
[1751668986041,5.04258727,148.42,148.4,6.73854447]
[1751668986242,5.04258727,148.43,148.4,6.73854447]
[1751668986442,5.04258727,148.42,148.4,6.73854447]
[1751668986632,5.04258727,148.43,148.4,6.73854447]
[1751668986821,5.04258727,148.42,148.4,6.73854447]
[1751668987023,5.04258727,148.43,148.4,6.73854447]
[1751668987230,5.04258727,148.42,148.4,6.73854447]
[1751668987445,5.04258727,148.43,148.4,6.73854447]
[1751668987646,5.04258727,148.42,148.4,6.73854447]
[1751668987850,5.04258727,148.43,148.4,6.73854447]
[1751668988029,5.04258727,148.42,148.4,6.73854447]
[1751668988231,5.04258727,148.43,148.4,6.73854447]
[1751668988536,5.04258727,148.42,148.4,6.73854447]
[1751668988834,5.04258727,148.43,148.4,6.73854447]
[1751668989035,5.04258727,148.42,148.4,6.73854447]
[1751668989343,5.04258727,148.43,148.4,6.73854447]
[1751668989543,5.04258727,148.42,148.4,6.73854447]
[1751668989743,5.04258727,148.43,148.4,6.73854447]
[1751668989960,5.04258727,148.42,148.4,6.73854447]
[1751668990259,5.04258727,148.43,148.4,6.73854447]
[1751668990444,5.04258727,148.42,148.4,6.73854447]
[1751668990646,5.04258727,148.43,148.4,6.73854447]
[1751668990945,5.04258727,148.42,148.4,6.73854447]
[1751668991149,5.04258727,148.43,148.4,6.73854447]
[1751668991460,5.95211401,148.44,148.4,6.73854447]
[1751668991670,5.03914506,148.43,148.4,6.73854447]
[1751668991885,3.80842229,148.44,148.39,3.80842229]
[1751668992159,5.03914649,148.43,148.39,3.80842229]
[1751668992350,3.80842229,148.44,148.39,3.80842229]
[1751668992551,5.03876855,148.43,148.39,3.80842229]
[1751668993759,8.84719084,148.43,148.4,6.73854447]
[1751668993941,3.80842229,148.43,148.4,6.73854447]
[1751668994136,8.84719084,148.43,148.4,6.73854447]
[1751668994331,5.03876855,148.42,148.4,6.73854447]
[1751668995677,5.03876855,148.41,148.4,6.73854447]
[1751668995878,5.03876855,148.41,148.39,6.73899858]
[1751669001563,5.03876855,148.41,148.4,3.80842229]
[1751669001771,5.03876855,148.44,148.4,3.80842229]
[1751669001982,5.03876855,148.43,148.4,3.80842229]
[1751669002287,5.03876855,148.44,148.4,3.80842229]
[1751669002460,92.70842229,148.45,148.4,3.80842229]
[1751669002461,5.03876855,148.43,148.4,3.80842229]
[1751669002768,5.03876855,148.44,148.4,3.80842229]
[1751669002966,5.03876855,148.43,148.41,6.73809042]
[1751669003171,5.03876855,148.44,148.41,6.73809042]
[1751669003375,5.03876855,148.44,148.42,3.80842229]
[1751669004978,5.03876855,148.44,148.43,6.73718251]
[1751669005387,5.03876855,148.46,148.45,26.0]
[1751669005570,5.03734859,148.47,148.45,26.0]
[1751669005772,0.1,148.48,148.43,6.73718251]
[1751669005773,8.84577088,148.46,148.43,6.73718251]
[1751669005986,3.80842229,148.44,148.42,6.73745684]
[1751669006183,8.84577088,148.44,148.42,6.73745684]
[1751669006374,8.84577088,148.44,148.4,3.80842229]
[1751669006375,3.80842229,148.44,148.4,3.80842229]
[1751669006574,8.84577088,148.43,148.39,3.80842229]
[1751669006770,5.03734859,148.42,148.39,6.73899858]
[1751669007278,3.80842229,148.44,148.39,36.54742087]
[1751669007486,5.03734859,148.43,148.39,36.54742087]
[1751669007697,5.03734859,148.43,148.4,3.80842229]
[1751669007872,5.03734859,148.43,148.41,3.80842229]
[1751669008072,5.03734859,148.44,148.41,3.80842229]
[1751669008272,5.03734859,148.45,148.41,3.80842229]
[1751669008489,5.04066078,148.44,148.41,3.80842229]
[1751669008694,3.80842229,148.46,148.41,3.80842229]
[1751669008865,5.04065935,148.45,148.41,3.80842229]
[1751669009068,5.04065935,148.44,148.41,3.80842229]
[1751669009292,3.80842229,148.46,148.42,6.73763643]
[1751669009501,5.04190072,148.45,148.42,6.73763643]
[1751669009683,5.04190072,148.44,148.42,6.73763643]
[1751669009984,3.80842229,148.46,148.42,6.73763643]
[1751669010172,5.04190072,148.45,148.42,6.73763643]
[1751669010376,5.04190072,148.44,148.42,6.73763643]
[1751669010695,3.80842229,148.46,148.4,6.73854447]
[1751669010906,5.04298271,148.45,148.41,3.80842229]
[1751669011200,5.04298271,148.44,148.41,3.80842229]
[1751669011378,5.04298271,148.43,148.41,3.80842229]
[1751669011581,5.04298271,148.45,148.41,3.80842229]
[1751669011780,5.04298271,148.44,148.4,3.80842229]
[1751669011984,5.04298271,148.43,148.4,6.73843961]
[1751669012194,8.851405,148.42,148.38,6.73945275]
[1751669012378,8.851405,148.41,148.38,6.73945275]
[1751669012583,5.04298271,148.4,148.38,6.73945275]
[1751669012802,5.04298271,148.4,148.37,0.2]
[1751669012803,8.85624421,148.39,148.37,0.2]
[1751669013007,8.85624421,148.38,148.37,0.2]
[1751669015108,5.04782192,148.38,148.37,0.2]
[1751669015312,8.85624421,148.38,148.37,0.2]
[1751669015893,11.00360952,148.38,148.37,0.2]
[1751669019322,11.00360952,148.39,148.37,0.2]
[1751669019483,11.00360952,148.38,148.37,0.2]
[1751669020188,11.00360952,148.38,148.35,0.1]
[1751669020409,5.9557876,148.38,148.35,6.84081435]
[1751669020810,11.00360952,148.38,148.35,6.84081435]
[1751669021010,5.04782192,148.38,148.35,6.84081435]
[1751669021211,5.04782192,148.38,148.36,5.9557876]
[1751669021510,88.9,148.39,148.37,5.9557876]
[1751669021689,5.9557876,148.42,148.37,5.9557876]
[1751669021893,10.99548602,148.41,148.37,5.9557876]
[1751669022099,5.03969842,148.4,148.37,5.9557876]
[1751669022503,10.99548602,148.41,148.37,5.9557876]
[1751669022710,10.99548602,148.41,148.38,6.73945275]
[1751669024220,5.03969842,148.41,148.38,6.73945275]
[1751669024404,10.99548602,148.41,148.38,6.73945275]
[1751669026227,5.9557876,148.39,148.36,32.74030774]
[1751669028731,5.03969842,148.4,148.36,38.69609534]
[1751669029236,10.99548602,148.4,148.36,32.74030774]
[1751669031541,10.99548602,148.4,148.36,38.69609534]
[1751669033359,10.99548602,148.4,148.36,6.74030774]
[1751669034158,10.99548602,148.39,148.35,6.84070781]
[1751669034350,5.9557876,148.39,148.35,6.84070781]
[1751669034538,10.99548602,148.39,148.35,6.84070781]
[1751669034741,5.9557876,148.39,148.35,6.84070781]
[1751669034946,10.99548602,148.39,148.35,6.84070781]
[1751669035250,5.9557876,148.39,148.35,6.84070781]
[1751669035454,10.99548602,148.39,148.35,6.84070781]
[1751669035755,5.9557876,148.39,148.35,6.84070781]
[1751669035966,10.99548602,148.39,148.35,6.84070781]
[1751669036459,99.89548602,148.39,148.35,6.84070781]
[1751669036667,94.8557876,148.39,148.35,6.84070781]
[1751669038168,10.99486941,148.38,148.35,6.84070781]
[1751669040058,10.99486941,148.38,148.35,0.1]
[1751669040535,5.03908181,148.38,148.35,6.84079935]
[1751669040759,10.99486941,148.38,148.35,6.84079935]
[1751669041476,10.99486941,148.38,148.35,0.1]
[1751669041956,10.99486941,148.38,148.35,6.84072679]
[1751669043187,10.99486941,148.38,148.35,0.1]
[1751669043482,5.03908181,148.38,148.35,0.1]
[1751669043682,10.99486941,148.38,148.35,0.1]
[1751669043882,8.850461,148.37,148.35,0.1]
[1751669044084,5.03908181,148.37,148.35,0.1]
[1751669044379,8.850461,148.37,148.35,0.1]
[1751669044767,3.81137919,148.36,148.35,0.1]
[1751669045177,8.850461,148.37,148.35,0.1]
[1751669045877,10.9953157,148.37,148.35,0.1]
[1751669047387,5.95623389,148.36,148.35,0.1]
[1751669047956,10.99348087,148.36,148.35,0.1]
[1751669048181,23.68689584,148.36,148.35,0.1]
[1751669048366,29.64312973,148.36,148.35,0.1]
[1751669049284,44.19089101,148.36,148.35,0.1]
[1751669049474,44.19089101,148.36,148.34,0.2]
[1751669049475,44.64964886,148.35,148.34,0.2]
[1751669049674,89.78312973,148.35,148.34,0.2]
[1751669050267,89.78312973,148.35,148.31,0.2]
[1751669050268,44.64964886,148.32,148.31,0.2]
[1751669050465,61.59936362,148.32,148.31,0.2]
[1751669051275,76.14894269,148.32,148.31,0.2]
[1751669052684,70.1927088,148.32,148.31,0.2]
[1751669052885,104.3527088,148.32,148.31,0.2]
[1751669053393,104.34302915,148.32,148.31,0.2]
[1751669055283,91.64461619,148.32,148.31,0.2]
[1751669055591,6.74178462,148.33,148.31,0.2]
[1751669055592,5.95623389,148.35,148.31,6.94263367]
[1751669055888,5.0248671,148.35,148.31,0.2]
[1751669056185,5.95623389,148.33,148.31,0.2]
[1751669057391,5.95623389,148.34,148.31,0.2]
[1751669058791,5.95623389,148.33,148.31,0.2]
[1751669062500,6.7410134,148.35,148.31,0.2]
[1751669062701,5.95623389,148.33,148.31,0.2]
[1751669070438,88.9,148.34,148.31,6.94253536]
[1751669070608,88.9,148.34,148.31,0.2]
[1751669070609,5.95623389,148.33,148.31,0.2]
[1751669075830,88.9,148.34,148.31,0.2]
[1751669076031,5.95623389,148.33,148.31,0.2]
[1751669077452,88.9,148.34,148.31,0.2]
[1751669077640,5.95623389,148.33,148.31,0.2]
[1751669078746,88.9,148.34,148.31,0.2]
[1751669078948,5.95623389,148.33,148.31,0.2]
[1751669079747,88.9,148.34,148.31,0.2]
[1751669079954,88.9,148.34,148.31,12.8986494]
[1751669080160,7.0,148.36,148.33,5.95623389]
[1751669080357,12.03471754,148.36,148.33,5.95623389]
[1751669080731,12.03471754,148.36,148.34,5.95623389]
[1751669080941,7.0,148.36,148.35,6.74081563]
[1751669081431,94.95623389,148.41,148.35,12.69704952]
[1751669081631,5.03519434,148.4,148.36,5.95623389]
[1751669081836,5.03519434,148.4,148.35,6.74081563]
[1751669082038,5.03519434,148.4,148.37,5.95623389]
[1751669082859,5.03519434,148.4,148.37,12.69581458]
[1751669084044,5.03519434,148.4,148.36,5.95623389]
[1751669085277,5.03519434,148.4,148.37,6.73990698]
[1751669085446,10.99142823,148.4,148.37,6.73990698]
[1751669087874,5.95623389,148.39,148.35,5.95623389]
[1751669089194,5.95623389,148.38,148.34,12.69750394]
[1751669089766,5.95623389,148.37,148.34,6.74127005]
[1751669091090,5.95623389,148.38,148.34,12.69750394]
[1751669091286,5.95623389,148.38,148.34,6.74127005]
[1751669092997,5.95623389,148.38,148.34,12.69750394]
[1751669094089,5.95623389,148.37,148.34,6.74127005]
[1751669094288,5.95623389,148.35,148.31,32.15623389]
[1751669094594,5.95623389,148.35,148.31,6.15623389]
[1751669094990,5.95623389,148.33,148.31,0.2]
[1751669095580,5.95623389,148.32,148.31,0.2]
[1751669096495,5.95623389,148.33,148.31,6.94245607]
[1751669097501,5.95623389,148.33,148.31,0.2]
[1751669098292,88.9,148.35,148.31,0.2]
[1751669098293,5.95623389,148.32,148.31,0.2]
[1751669098492,5.95623389,148.33,148.31,0.2]
[1751669100597,5.95623389,148.32,148.31,0.2]
[1751669104704,88.9,148.33,148.31,6.15623389]
[1751669104910,88.9,148.33,148.32,5.95623389]
[1751669105715,7.0,148.35,148.32,5.95623389]
[1751669105908,7.0,148.35,148.33,5.95623389]
[1751669106512,5.03792527,148.36,148.33,5.95623389]
[1751669107107,5.03792527,148.36,148.33,6.74167603]
[1751669107310,10.99415916,148.36,148.33,6.74167603]
[1751669109514,10.99415916,148.36,148.32,6.74217907]
[1751669110309,5.03792527,148.35,148.32,6.74217907]
[1751669111427,5.03792527,148.36,148.33,5.95623389]
[1751669112899,5.03792527,148.36,148.33,12.69757109]
[1751669113100,88.9,148.37,148.35,5.95623389]
[1751669113333,95.9,148.39,148.36,5.95623389]
[1751669113510,5.03870816,148.38,148.36,5.95623389]
[1751669113712,5.03870816,148.38,148.37,5.95623389]
[1751669113911,7.0,148.39,148.37,5.95623389]
[1751669114110,12.03870816,148.39,148.37,5.95623389]
[1751669114312,7.0,148.39,148.37,5.95623389]
[1751669114512,12.03870816,148.39,148.37,5.95623389]
[1751669114708,7.0,148.39,148.37,12.69608149]
[1751669114914,5.03870816,148.39,148.38,5.95623389]
[1751669115107,5.03870816,148.4,148.38,5.95623389]
[1751669115311,5.03870816,148.39,148.38,5.95623389]
[1751669115513,5.03831401,148.4,148.38,5.95623389]
[1751669115713,5.03831401,148.39,148.38,12.69568664]
[1751669116029,5.03831401,148.4,148.38,12.69568664]
[1751669117522,89.0,148.41,148.38,12.69568664]
[1751669117723,94.95623389,148.41,148.35,26.0]
[1751669117915,5.03725913,148.4,148.35,26.0]
[1751669118116,5.03725913,148.4,148.36,5.95623389]
[1751669119118,5.03725913,148.4,148.36,12.69659517]
[1751669121134,5.03725913,148.4,148.37,5.95623389]
[1751669123539,5.03725913,148.4,148.37,12.69609499]
[1751669123938,5.03725913,148.4,148.37,6.7398611]
[1751669124125,5.03725913,148.4,148.37,12.69609499]
[1751669124745,5.03725913,148.4,148.38,5.95623389]
[1751669125540,5.03725913,148.4,148.37,12.69609499]
[1751669127220,10.99349302,148.4,148.36,12.69643197]
[1751669127535,10.99349302,148.4,148.36,6.74019808]
[1751669127734,10.99349302,148.4,148.36,12.69643197]
[1751669127938,5.03725913,148.39,148.36,12.69643197]
[1751669128113,5.03725913,148.4,148.37,5.95623389]
[1751669128313,5.03725913,148.4,148.37,12.69585306]
[1751669129938,5.03716775,148.4,148.37,12.69585306]
[1751669130315,5.03716775,148.39,148.37,12.69585306]
[1751669131153,5.03716775,148.39,148.38,5.95623389]
[1751669131327,0.1,148.41,148.38,5.95623389]
[1751669131525,5.13654979,148.41,148.4,5.95623389]
[1751669131822,5.13654979,148.41,148.37,6.73961917]
[1751669131823,0.1,148.41,148.39,5.95623389]
[1751669132015,5.13654979,148.41,148.4,12.69477836]
[1751669132227,0.1,148.41,148.4,12.69477836]
[1751669134241,0.1,148.41,148.38,12.69550164]
[1751669136144,0.1,148.41,148.37,5.95623389]
[1751669136445,0.1,148.41,148.38,5.95623389]
[1751669137154,0.1,148.41,148.39,5.95623389]
[1751669138152,0.1,148.41,148.4,5.95623389]
[1751669138467,0.1,148.41,148.4,12.69477836]
[1751669141461,0.1,148.41,148.4,18.65101225]
[1751669143569,0.1,148.41,148.4,12.69477836]
[1751669148086,0.1,148.41,148.4,18.65101225]
[1751669148288,1e-08,148.41,148.4,37.30066111]
[1751669148456,0.1,148.44,148.43,26.0]
[1751669148656,0.1,148.44,148.43,31.95623389]
[1751669149698,0.1,148.44,148.43,38.6934164]
[1751669150368,0.1,148.44,148.43,32.73718251]
[1751669150559,0.1,148.44,148.43,38.6934164]
[1751669166293,0.1,148.44,148.43,32.73718251]
[1751669166492,0.1,148.44,148.43,38.6934164]
[1751669167080,0.1,148.46,148.43,108.30602153]
[1751669167290,0.1,148.46,148.45,31.95623389]
[1751669168398,0.1,148.46,148.45,38.69250873]
[1751669171690,0.1,148.46,148.45,32.73627484]
[1751669171887,0.1,148.46,148.45,38.69250873]
[1751669172918,0.1,148.46,148.45,32.73627484]
[1751669173082,0.1,148.46,148.45,12.69250873]
[1751669174493,0.1,148.46,148.45,6.73627484]
[1751669174694,0.1,148.46,148.45,12.69250873]
[1751669175902,0.1,148.46,148.45,6.73627484]
[1751669176133,0.1,148.46,148.45,12.69250873]
[1751669177614,0.1,148.46,148.43,5.95623389]
[1751669177821,0.1,148.46,148.41,16.84521249]
[1751669177822,0.1,148.46,148.42,12.69387032]
[1751669178338,0.1,148.46,148.39,5.95623389]
[1751669178339,5.95623389,148.43,148.39,5.95623389]
[1751669178701,5.95623389,148.43,148.39,31.95623389]
[1751669178906,5.95623389,148.43,148.38,5.95623389]
[1751669179525,5.95623389,148.43,148.38,31.95623389]
[1751669179914,5.95623389,148.43,148.39,12.69494582]
[1751669180424,10.98575719,148.43,148.39,12.69494582]
[1751669181013,10.98575719,148.43,148.39,6.73871193]
[1751669181512,12.32753389,148.42,148.38,6.73931059]
[1751669181721,5.95623389,148.4,148.36,12.69659517]
[1751669181920,5.95623389,148.4,148.35,12.89691615]
[1751669182126,11.40532182,148.42,148.36,5.95623389]
[1751669182127,5.95623389,148.41,148.36,5.95623389]
[1751669182328,17.36155571,148.42,148.37,5.95623389]
[1751669182536,5.03402182,148.41,148.37,5.95623389]
[1751669182938,5.03402182,148.4,148.37,5.95623389]
[1751669183112,5.03402182,148.41,148.37,5.95623389]
[1751669183848,10.99025571,148.41,148.37,5.95623389]
[1751669184024,10.99025571,148.41,148.35,32.94068226]
[1751669184350,10.99025571,148.41,148.37,5.95623389]
[1751669185346,10.99025571,148.41,148.37,12.69592948]
[1751669186044,5.95623389,148.41,148.37,12.69592948]
[1751669186450,88.9,148.4,148.37,12.69592948]
[1751669188144,94.85623389,148.4,148.36,6.74022282]